bitfinex/quotes_SOLUSD_20260311
["timestamp","ask_amount","ask_price","bid_price","bid_amount"]
[1773235329586,7.51311174,86.35,86.322,1.95513754]
[1773235329783,7.51311174,86.34,86.322,1.95513754]
[1773235330105,11.58225135,86.339,86.31,11.58614297]
[1773235330398,11.5815846,86.344,86.311,1.95513754]
[1773235330814,7.51311174,86.34,86.311,1.95513754]
[1773235330993,11.5815846,86.344,86.311,1.95513754]
[1773235332412,11.58091002,86.349,86.313,1.95513754]
[1773235333004,7.51311174,86.34,86.313,1.95513754]
[1773235333206,1.91624893,86.348,86.313,1.95513754]
[1773235333393,7.51311174,86.34,86.313,1.95513754]
[1773235333597,11.57876454,86.365,86.331,1.95513754]
[1773235333802,7.51311174,86.36,86.331,1.95513754]
[1773235334811,11.579569,86.359,86.331,1.95513754]
[1773235335116,1.91624893,86.403,86.351,1.95513754]
[1773235335302,1.91624893,86.379,86.341,1.95513754]
[1773235335617,7.51234063,86.38,86.341,1.95513754]
[1773235335817,1.91624893,86.379,86.341,1.95513754]
[1773235336611,2.0584105,86.399,86.351,1.95513754]
[1773235336810,7.51234063,86.39,86.351,1.95513754]
[1773235337118,11.57554781,86.389,86.353,1.95513754]
[1773235337296,1.91624893,86.388,86.353,1.95513754]
[1773235337498,10.03234063,86.4,86.361,1.95513754]
[1773235337790,7.51234063,86.38,86.352,13.53564522]
[1773235338296,1.91624893,86.369,86.34,11.58203126]
[1773235338711,7.51234063,86.36,86.335,11.58275625]
[1773235338911,7.51234063,86.36,86.331,11.58331634]
[1773235339197,11.579569,86.359,86.331,11.58331634]
[1773235339403,11.579569,86.359,86.329,1.95513754]
[1773235339931,7.51234063,86.34,86.308,1.93135999]
[1773235340400,1.90436889,86.349,86.287,2.34]
[1773235340401,42.43286041,86.359,86.311,1.93135999]
[1773235340717,13.48393789,86.359,86.321,1.93135999]
[1773235341024,7.51234063,86.35,86.321,1.93135999]
[1773235341208,13.48393789,86.359,86.322,13.51589232]
[1773235341399,13.48393789,86.359,86.323,1.93135999]
[1773235341711,13.48393789,86.359,86.33,7.51234063]
[1773235341913,11.579569,86.359,86.331,1.93135999]
[1773235342114,1.90436889,86.377,86.35,7.51234063]
[1773235342414,11.57728998,86.376,86.341,1.93135999]
[1773235342593,11.57728998,86.376,86.33,0.5]
[1773235342594,1.90436889,86.399,86.361,1.93135999]
[1773235342796,1.90436889,86.399,86.37,7.51234063]
[1773235343004,1.90436889,86.399,86.361,1.93135999]
[1773235343005,1.90436889,86.398,86.361,1.93135999]
[1773235343200,11.57420803,86.399,86.371,11.57796019]
[1773235343398,1.90436889,86.407,86.371,11.57796019]
[1773235343399,11.57327037,86.406,86.372,1.93135999]
[1773235343699,1.90436889,86.407,86.372,1.93135999]
[1773235343909,1.90436889,86.419,86.381,1.93135999]
[1773235344222,1.90436889,86.419,86.38,7.51234063]
[1773235344223,1.90436889,86.44,86.4,7.51234063]
[1773235344403,11.56885202,86.439,86.41,7.51234063]
[1773235345016,1.90436889,86.429,86.39,7.51234063]
[1773235345322,46.26603582,86.457,86.375,2.34]
[1773235345323,1.90436889,86.451,86.42,7.51234063]
[1773235346722,11.56711238,86.452,86.43,7.51234063]
[1773235346928,11.56711238,86.452,86.421,1.93135999]
[1773235347305,7.51234063,86.46,86.421,1.93135999]
[1773235347306,1.90436889,86.458,86.421,1.93135999]
[1773235347508,1.90436889,86.458,86.422,11.57112772]
[1773235347924,1.90436889,86.449,86.412,11.57244913]
[1773235348099,11.56557536,86.464,86.431,1.93135999]
[1773235348301,46.23096455,86.523,86.441,1.93135999]
[1773235348302,11.5637684,86.477,86.441,1.93135999]
[1773235348514,11.5637684,86.477,86.416,2.34]
[1773235348515,11.56216397,86.489,86.451,1.93135999]
[1773235348730,1.90436889,86.479,86.44,7.51234063]
[1773235349212,11.56363468,86.478,86.443,1.93135999]
[1773235349546,11.56363468,86.478,86.424,2.34]
[1773235349547,1.90436889,86.469,86.431,1.93135999]
[1773235349714,1.90436889,86.469,86.44,7.51234063]
[1773235349906,7.51234063,86.46,86.424,1.93135999]
[1773235350220,1.90436889,86.449,86.413,1.93135999]
[1773235350418,1.90436889,86.449,86.42,7.51234063]
[1773235350599,1.90436889,86.439,86.403,11.57367221]
[1773235350803,7.51234063,86.43,86.397,2.34]
[1773235351011,2.52,86.476,86.382,1.93135999]
[1773235351012,7.51234063,86.41,86.382,1.93135999]
[1773235351215,11.57286856,86.409,86.382,1.93135999]
[1773235352018,11.57286856,86.409,86.378,11.57697017]
[1773235352222,1.90436889,86.408,86.371,13.50928021]
[1773235352428,11.57230129,86.414,86.381,1.93135999]
[1773235352728,7.51234063,86.41,86.381,1.93135999]
[1773235353406,11.57230129,86.414,86.382,11.57648584]
[1773235353601,36.43753715,86.43,86.391,1.93135999]
[1773235353804,46.24985575,86.487,86.41,7.51234063]
[1773235353805,7.51234063,86.44,86.41,7.51234063]
[1773235354027,1.90436889,86.443,86.41,7.51234063]
[1773235354028,11.56885202,86.439,86.41,7.51234063]
[1773235354407,1.90436889,86.443,86.41,7.51234063]
[1773235354722,1.90436889,86.443,86.401,1.93135999]
[1773235354723,7.51234063,86.44,86.401,1.93135999]
[1773235354926,7.51234063,86.41,86.371,1.93135999]
[1773235355111,7.51234063,86.41,86.38,7.51234063]
[1773235355421,11.57286856,86.409,86.378,11.57701458]
[1773235355721,11.57286856,86.409,86.38,7.51234063]
[1773235356220,11.57286856,86.409,86.371,1.93135999]
[1773235356221,40.50503997,86.409,86.371,1.93135999]
[1773235356420,46.27326677,86.443,86.36,27.66520015]
[1773235356421,7.51234063,86.42,86.39,7.51234063]
[1773235356615,1.90436889,86.409,86.372,11.57782614]
[1773235357056,7.51234063,86.4,86.372,11.57782614]
[1773235357327,7.51234063,86.4,86.37,7.51234063]
[1773235357512,11.57420803,86.399,86.371,11.57796019]
[1773235358722,1.90436889,86.42,86.381,1.93135999]
[1773235358907,42.40003585,86.429,86.391,1.93135999]
[1773235359109,42.40003585,86.429,86.371,40.52286067]
[1773235359110,2.04997329,86.419,86.38,9.44370062]
[1773235359331,7.51234063,86.41,86.38,1.93135999]
[1773235359519,11.57273428,86.411,86.382,1.9600616]
[1773235359722,7.51234063,86.41,86.382,1.9600616]
[1773235360925,7.51234063,86.41,86.377,1.9600616]
[1773235361123,7.51234063,86.41,86.37,7.51234063]
[1773235361124,7.51234063,86.4,86.37,7.51234063]
[1773235361325,2.04997329,86.409,86.37,7.51234063]
[1773235361530,2.04997329,86.409,86.371,1.9600616]
[1773235361926,2.04997329,86.407,86.372,11.57782614]
[1773235362114,7.51234063,86.4,86.371,1.9600616]
[1773235362309,7.51234063,86.4,86.371,13.53794128]
[1773235362715,2.04997329,86.407,86.371,13.53794128]
[1773235363432,7.51234063,86.4,86.371,13.53794128]
[1773235363625,11.57327037,86.406,86.371,13.53794128]
[1773235363928,2.04997329,86.399,86.361,1.9600616]
[1773235365914,7.51234063,86.39,86.362,11.57916676]
[1773235366132,2.04997329,86.395,86.362,11.57916676]
[1773235366327,11.57434199,86.398,86.371,1.9600616]
[1773235367046,11.57377296,86.403,86.371,1.9600616]
[1773235368221,7.51234063,86.4,86.371,1.9600616]
[1773235369933,7.51234063,86.4,86.372,11.57782614]
[1773235371226,11.57420803,86.399,86.372,11.57782614]
[1773235372335,1.96281174,86.432,86.39,7.51234063]
[1773235372529,1.96281174,86.419,86.39,7.51234063]
[1773235372837,1.96281174,86.409,86.372,11.57782614]
[1773235373022,9.47515237,86.4,86.372,11.57782614]
[1773235373228,9.47515237,86.4,86.364,11.57882789]
[1773235373229,1.96281174,86.399,86.364,11.57882789]
[1773235374117,1.96281174,86.399,86.362,1.88892676]
[1773235374316,1.96281174,86.399,86.371,11.57796019]
[1773235374521,11.57434199,86.398,86.371,11.57796019]
[1773235375427,11.57286856,86.409,86.372,1.88892676]
[1773235375747,1.96281174,86.417,86.381,1.88892676]
[1773235375926,11.57166331,86.418,86.381,1.88892676]
[1773235375927,9.47515237,86.41,86.381,1.88892676]
[1773235376239,9.47515237,86.41,86.371,40.52286067]
[1773235376240,1.96281174,86.409,86.372,1.88892676]
[1773235376449,1.96281174,86.409,86.38,7.51234063]
[1773235376641,11.57300249,86.408,86.38,7.01234063]
[1773235376841,11.57300249,86.408,86.379,11.57675707]
[1773235377043,1.96281174,86.407,86.373,11.57758043]
[1773235377345,1.96281174,86.407,86.373,13.46650719]
[1773235377536,1.96281174,86.407,86.374,1.88892676]
[1773235378648,11.57327037,86.406,86.375,11.57742402]
[1773235379048,2.5,86.422,86.375,11.57742402]
[1773235379049,1.96281174,86.434,86.391,1.88892676]
[1773235379240,1.96281174,86.409,86.375,11.57742402]
[1773235379628,1.96281174,86.409,86.38,7.51234063]
[1773235379828,1.96281174,86.409,86.371,11.57793058]
[1773235380128,1.96281174,86.409,86.372,1.88892676]
[1773235380328,1.96281174,86.409,86.38,7.51234063]
[1773235380543,1.96281174,86.409,86.372,1.88892676]
[1773235380848,1.96281174,86.407,86.374,1.88892676]
[1773235381250,40.50550873,86.408,86.381,1.88892676]
[1773235381251,11.57300249,86.408,86.381,1.88892676]
[1773235381426,11.5715294,86.419,86.391,1.88892676]
[1773235382331,40.50035292,86.419,86.391,1.88892676]
[1773235382947,40.50035292,86.419,86.376,2.34]
[1773235382948,11.56885202,86.439,86.401,1.88892676]
[1773235383151,40.49099199,86.439,86.401,1.88892676]
[1773235385049,11.56885202,86.439,86.411,1.88892676]
[1773235385832,7.51234063,86.43,86.4,7.51234063]
[1773235386033,1.96281174,86.429,86.395,1.88892676]
[1773235386338,1.96281174,86.429,86.4,7.51234063]
[1773235386650,1.96281174,86.409,86.366,1.88892676]
[1773235386851,7.51234063,86.38,86.36,27.66520015]
[1773235387082,1.96281174,86.389,86.36,27.66520015]
[1773235387661,11.5756818,86.388,86.361,11.57930084]
[1773235388356,11.5756818,86.388,86.36,35.17754078]
[1773235388531,40.51488631,86.388,86.36,27.66520015]
[1773235388727,11.5756818,86.388,86.36,39.24457562]
[1773235390047,13.53849354,86.388,86.36,27.66520015]
[1773235390244,13.53849354,86.388,86.356,11.57995694]
[1773235390245,7.51234063,86.37,86.336,1.88892676]
[1773235390553,7.51234063,86.37,86.301,46.34891773]
[1773235390554,1.96281174,86.379,86.341,1.88892676]
[1773235391848,1.96281174,86.377,86.343,1.88892676]
[1773235392145,1.96281174,86.369,86.341,1.88892676]
[1773235392848,13.53983366,86.378,86.341,1.88892676]
[1773235394045,7.51234063,86.37,86.343,1.88892676]
[1773235394242,1.96281174,86.369,86.34,7.51234063]
[1773235394572,1.96281174,86.369,86.342,11.58184892]
[1773235394756,1.96281174,86.369,86.34,9.40126739]
[1773235394956,1.96281174,86.369,86.341,11.58198306]
[1773235395760,42.48238847,86.378,86.342,1.88892676]
[1773235396140,1.96281174,86.377,86.344,1.88892676]
[1773235396368,1.96281174,86.369,86.333,11.58297844]
[1773235396657,1.96281174,86.369,86.334,1.88892676]
[1773235397437,1.96281174,86.359,86.333,11.58297844]
[1773235397643,1.96281174,86.359,86.326,11.58397457]
[1773235397838,1.96281174,86.359,86.325,1.88892676]
[1773235398264,1.96281174,86.359,86.322,11.58453146]
[1773235398265,1.96281174,86.349,86.316,11.58520905]
[1773235398468,28.94601787,86.368,86.321,1.88892676]
[1773235398652,1.96281174,86.359,86.33,7.51209239]
[1773235399461,1.96281174,86.359,86.321,1.88892676]
[1773235399676,11.57783666,86.372,86.341,1.91930738]
[1773235399866,2.08030736,86.369,86.331,1.91930738]
[1773235400070,7.51209239,86.36,86.331,1.91930738]
[1773235400246,9.59239975,86.36,86.332,11.58319047]
[1773235400567,11.57702347,86.378,86.351,1.91930738]
[1773235401064,2.08030736,86.369,86.333,1.91930738]
[1773235401756,7.51209239,86.37,86.333,1.91930738]
[1773235401757,7.51209239,86.36,86.333,1.91930738]
[1773235402159,11.579569,86.359,86.333,1.91930738]
[1773235402353,2.08030736,86.358,86.333,1.91930738]
[1773235402539,2.08030736,86.358,86.325,2.34]
[1773235402748,2.08030736,86.349,86.313,1.91930738]
[1773235403256,2.08030736,86.349,86.315,1.91930738]
[1773235403862,2.08030736,86.349,86.32,7.51209239]
[1773235404363,11.58104414,86.348,86.32,7.51209239]
[1773235405266,2.08030736,86.347,86.317,1.91930738]
[1773235405776,2.08030736,86.347,86.311,13.5051938]
[1773235405978,2.08030736,86.347,86.312,1.91930738]
[1773235407167,2.08030736,86.347,86.31,7.51209239]
[1773235407168,2.08030736,86.357,86.321,1.91930738]
[1773235407355,2.08030736,86.355,86.321,1.91930738]
[1773235407557,11.57997128,86.356,86.331,1.91930738]
[1773235408555,11.57997128,86.356,86.332,11.58319047]
[1773235408864,13.66027864,86.356,86.331,1.91930738]
[1773235409178,2.08030736,86.355,86.33,7.51209239]
[1773235409473,11.57997128,86.356,86.33,7.51209239]
[1773235409644,11.57949294,86.36,86.331,1.91930738]
[1773235409850,19.09158533,86.36,86.331,1.91930738]
[1773235410875,19.09158533,86.36,86.332,11.58319047]
[1773235411378,11.57895655,86.364,86.333,1.91930738]
[1773235411857,2.08030736,86.363,86.333,1.91930738]
[1773235412555,8.09239975,86.36,86.333,1.91930738]
[1773235413157,2.08030736,86.36,86.334,11.58292213]
[1773235413365,2.08030736,86.372,86.341,1.91930738]
[1773235413673,2.08030736,86.372,86.35,7.51209239]
[1773235414263,28.94413713,86.374,86.35,7.51209239]
[1773235414566,11.57712112,86.378,86.351,1.91930738]
[1773235415273,2.08030736,86.377,86.351,1.91930738]
[1773235415962,2.08030736,86.4,86.37,7.51209239]
[1773235416182,2.08030736,86.399,86.368,1.91930738]
[1773235416380,2.08030736,86.399,86.361,1.91930738]
[1773235416864,2.08030736,86.389,86.361,1.91930738]
[1773235417269,2.08030736,86.389,86.36,7.51209239]
[1773235417569,2.08030736,86.389,86.352,40.5317769]
[1773235417767,2.08030736,86.389,86.352,13.49981506]
[1773235418269,2.08030736,86.387,86.353,1.91930738]
[1773235419557,2.08030736,86.387,86.36,3.00367915]
[1773235419784,2.08030736,86.387,86.353,1.91930738]
[1773235420083,2.01816857,86.359,86.32,3.00367915]
[1773235420373,2.01816857,86.357,86.33,4.99972877]
[1773235420578,11.57871101,86.366,86.341,1.99604962]
[1773235420979,16.60001879,86.37,86.341,1.99604962]
[1773235421183,2.01816857,86.369,86.341,1.99604962]
[1773235421475,11.57759425,86.374,86.341,1.99604962]
[1773235421680,4.51816857,86.386,86.351,1.99604962]
[1773235421861,28.93885952,86.39,86.351,1.99604962]
[1773235421862,2.01816857,86.381,86.351,1.99604962]
[1773235422173,11.57675387,86.38,86.352,11.58050768]
[1773235422380,13.59492244,86.38,86.352,11.58050768]
[1773235422581,11.57589609,86.387,86.361,1.99604962]
[1773235423078,13.59406466,86.387,86.361,1.99604962]
[1773235423283,2.01816857,86.386,86.352,11.58050768]
[1773235423681,2.01816857,86.379,86.351,1.99604962]
[1773235424066,2.01816857,86.379,86.352,11.58050768]
[1773235424267,2.01816857,86.399,86.361,1.99604962]
[1773235424679,7.51159412,86.38,86.35,7.51159412]
[1773235424878,7.51159412,86.38,86.344,1.99604962]
[1773235424879,7.51159412,86.37,86.344,1.99604962]
[1773235425086,9.52976269,86.37,86.344,1.99604962]
[1773235425382,2.01816857,86.379,86.344,1.99604962]
[1773235425587,2.01816857,86.379,86.351,1.99604962]
[1773235426371,13.59519049,86.378,86.351,1.99604962]
[1773235426888,11.57702192,86.378,86.351,1.99604962]
[1773235427185,2.01816857,86.359,86.329,1.99604962]
[1773235427483,2.01816857,86.359,86.331,1.99604962]
[1773235427669,2.01816857,86.367,86.34,7.51159412]
[1773235427864,2.01816857,86.367,86.34,9.50764374]
[1773235428586,11.57863047,86.366,86.342,1.99604962]
[1773235429682,2.5,86.392,86.36,9.4633739]
[1773235429683,11.5756818,86.388,86.36,9.4633739]
[1773235429875,11.5756818,86.388,86.361,1.95177978]
[1773235430467,1.95641922,86.393,86.361,1.95177978]
[1773235430700,1.95641922,86.393,86.363,1.95177978]
[1773235432191,11.57487788,86.394,86.362,11.57916676]
[1773235432192,11.57418866,86.4,86.371,1.95177978]
[1773235432668,1.95641922,86.399,86.357,1.95177978]
[1773235432870,1.95641922,86.389,86.35,7.51159412]
[1773235433093,1.95641922,86.389,86.36,7.51159412]
[1773235433288,1.95641922,86.389,86.351,1.95177978]
[1773235434474,7.51159412,86.39,86.351,1.95177978]
[1773235434475,1.95641922,86.387,86.351,1.95177978]
[1773235436296,40.51488631,86.388,86.331,1.95177978]
[1773235436297,1.95641922,86.369,86.331,1.95177978]
[1773235436799,1.95641922,86.367,86.333,1.95177978]
[1773235437384,1.95641922,86.367,86.32,28.96188137]
[1773235437385,1.95641922,86.359,86.32,7.51159412]
[1773235437585,1.95641922,86.349,86.32,7.51159412]
[1773235438689,1.95641922,86.339,86.316,1.95177978]
[1773235438992,1.95641922,86.339,86.32,7.51159412]
[1773235439193,1.95641922,86.339,86.316,1.95177978]
[1773235439805,1.95641922,86.339,86.307,1.95177978]
[1773235440118,1.95641922,86.339,86.31,7.51159412]
[1773235440414,1.95641922,86.339,86.307,1.95177978]
[1773235440600,1.95641922,86.339,86.31,7.51159412]
[1773235440796,1.95641922,86.339,86.312,1.95177978]
[1773235440797,11.5823855,86.338,86.312,1.95177978]
[1773235441002,1.95641922,86.337,86.312,1.95177978]
[1773235442825,1.95641922,86.335,86.29,2.34]
[1773235443013,1.95641922,86.319,86.288,1.95177978]
[1773235443603,1.95641922,86.319,86.28,3.20704382]
[1773235443814,1.95641922,86.309,86.28,0.2]
[1773235444022,1.95641922,86.299,86.268,1.95177978]
[1773235444516,1.95641922,86.299,86.27,3.00704382]
[1773235444924,1.95641922,86.297,86.26,0.2]
[1773235445112,1.95641922,86.289,86.26,3.20704382]
[1773235445519,1.95641922,86.289,86.26,0.2]
[1773235445705,1.95641922,86.289,86.26,7.72649836]
[1773235446811,1.95641922,86.289,86.26,0.2]
[1773235447520,1.95641922,86.287,86.26,7.72649836]
[1773235447719,1.95641922,86.287,86.26,0.2]
[1773235447908,1.95641922,86.287,86.26,7.72649836]
[1773235448111,1.95641922,86.287,86.26,0.2]
[1773235448826,1.95641922,86.287,86.261,1.95177978]
[1773235449323,1.95641922,86.287,86.26,7.72649836]
[1773235449324,1.95641922,86.285,86.26,0.2]
[1773235449726,1.95641922,86.279,86.26,0.2]
[1773235449929,40.56277958,86.286,86.241,1.95177978]
[1773235449930,1.95641922,86.269,86.241,1.95177978]
[1773235450223,7.52649836,86.27,86.241,1.95177978]
[1773235450426,1.95641922,86.278,86.241,1.95177978]
[1773235450635,1.95641922,86.278,86.251,1.95177978]
[1773235450812,1.95641922,86.278,86.24,19.32195027]
[1773235450813,1.95641922,86.278,86.241,1.95177978]
[1773235451318,1.95641922,86.269,86.241,1.95177978]
[1773235451929,1.95641922,86.267,86.24,0.2]
[1773235452224,1.95641922,86.259,86.24,0.2]
[1773235452629,1.95641922,86.259,86.24,1e-08]
[1773235453351,40.57124309,86.268,86.241,1.95177978]
[1773235453734,11.59178374,86.268,86.241,1.95177978]
[1773235453911,11.59124629,86.272,86.241,1.95177978]
[1773235454234,7.52649836,86.27,86.241,1.95177978]
[1773235454426,1.95641922,86.269,86.241,1.95177978]
[1773235454622,1.95641922,86.269,86.24,7.52649837]
[1773235454830,7.52649836,86.27,86.241,1.95177978]
[1773235455342,40.56936201,86.272,86.241,1.95177978]
[1773235455533,7.52649836,86.26,86.24,1e-08]
[1773235455735,1.95641922,86.262,86.24,1e-08]
[1773235457340,7.52649836,86.26,86.24,1e-08]
[1773235457553,11.5927244,86.261,86.24,1e-08]
[1773235457713,11.27682756,86.261,86.24,1e-08]
[1773235458241,1.95641922,86.259,86.24,1e-08]
[1773235458637,11.59070888,86.276,86.24,7.53082542]
[1773235458945,46.32874621,86.34,86.24,7.53082542]
[1773235458946,11.58855977,86.292,86.27,9.48260519]
[1773235459148,1.95641922,86.289,86.251,1.95177978]
[1773235459650,1.95641922,86.287,86.251,1.95177978]
[1773235459941,1.95641922,86.287,86.253,2.09225435]
[1773235460124,1.95641922,86.287,86.26,7.53082541]
[1773235460327,1.95641922,86.287,86.253,2.09225435]
[1773235460725,11.58848517,86.293,86.271,2.09225435]
[1773235461123,13.55936393,86.293,86.261,2.09225435]
[1773235461326,1.97087876,86.292,86.261,2.09225435]
[1773235462032,1.97087876,86.292,86.26,7.53082541]
[1773235462033,42.527548,86.299,86.263,2.09225435]
[1773235463833,13.55849854,86.299,86.271,2.09225435]
[1773235464027,13.55849854,86.299,86.273,2.09225435]
[1773235464825,42.527548,86.299,86.273,2.09225435]
[1773235466652,11.58641145,86.308,86.274,2.09225435]
[1773235467630,1.97087876,86.299,86.268,2.09225435]
[1773235469142,1.97087876,86.297,86.268,2.09225435]
[1773235469331,1.97087876,86.297,86.269,2.09225435]
[1773235470334,3.00963197,86.29,86.269,2.09225435]
[1773235470729,1.97087876,86.289,86.255,2.09225435]
[1773235471131,3.00963197,86.26,86.245,2.09225435]
[1773235471545,1.97087876,86.267,86.245,2.09225435]
[1773235471845,1.97087876,86.267,86.24,2.09225436]
[1773235472033,4.98051073,86.26,86.24,1e-08]
[1773235472547,1.97087876,86.259,86.24,1e-08]
[1773235472945,1.97087876,86.267,86.24,1e-08]
[1773235473152,11.59178374,86.268,86.24,1e-08]
[1773235473365,4.98051073,86.29,86.251,2.09225435]
[1773235473525,1.97087876,86.289,86.251,2.09225435]
[1773235474131,3.00963197,86.28,86.251,2.09225435]
[1773235474353,1.97087876,86.282,86.251,2.09225435]
[1773235474556,3.00963197,86.28,86.251,2.09225435]
[1773235474846,1.97087876,86.279,86.251,2.09225435]
[1773235475234,11.5904402,86.278,86.253,2.09225435]
[1773235477449,1.97087876,86.285,86.255,2.09225435]
[1773235479336,1.95079339,86.269,86.24,1e-08]
[1773235479548,1.95079339,86.269,86.241,2.0167953]
[1773235481349,40.57124309,86.268,86.241,2.0167953]
[1773235481555,11.59178374,86.268,86.242,11.5952784]
[1773235481849,11.59178374,86.268,86.243,2.0167953]
[1773235482238,1.95079339,86.269,86.243,2.0167953]
[1773235483254,1.95079339,86.259,86.24,1e-08]
[1773235483753,13.54392098,86.258,86.24,1e-08]
[1773235483951,1.95079339,86.257,86.24,1e-08]
[1773235484557,11.59312759,86.258,86.24,1e-08]
[1773235484752,7.5273468,86.26,86.24,1e-08]
[1773235487450,1.95079339,86.258,86.24,1e-08]
[1773235487647,11.59299319,86.259,86.24,1e-08]
[1773235488041,1.95079339,86.249,86.222,2.0167953]
[1773235488437,1.95079339,86.258,86.222,2.0167953]
[1773235489946,11.59326199,86.257,86.224,2.01303111]
[1773235490850,7.5273468,86.25,86.224,2.01303111]
[1773235491257,1.99030226,86.256,86.224,2.01303111]
[1773235491450,11.59326199,86.257,86.231,2.01303111]
[1773235491848,13.5826235,86.264,86.233,2.01303111]
[1773235492650,13.58114549,86.275,86.241,2.01303111]
[1773235492852,11.59084323,86.275,86.251,2.01303111]
[1773235493868,1.99030226,86.282,86.251,2.01303111]
[1773235494247,7.5273468,86.28,86.251,2.01303111]
[1773235494445,1.99030226,86.279,86.251,2.01303111]
[1773235494664,1.99030226,86.279,86.252,13.60696516]
[1773235494866,1.99030226,86.279,86.253,2.01303111]
[1773235495056,11.58976855,86.283,86.261,2.01303111]
[1773235495953,40.56418993,86.283,86.261,2.01303111]
[1773235496462,11.58976855,86.283,86.261,2.01303111]
[1773235496662,11.58949991,86.285,86.263,2.01303111]
[1773235499150,13.57980217,86.285,86.263,2.01303111]
[1773235499350,13.57980217,86.285,86.25,3.01037734]
[1773235499351,1.99030226,86.284,86.25,3.01037734]
[1773235499546,1.99030226,86.284,86.251,11.59406847]
[1773235499774,1.99030226,86.284,86.26,3.01037734]
[1773235500373,1.99030226,86.279,86.245,11.59487506]
[1773235500549,1.99030226,86.279,86.25,3.01037734]
[1773235500867,1.99030226,86.282,86.25,0.5]
[1773235501169,11.58976855,86.283,86.25,3.51037734]
[1773235501170,1.99030226,86.279,86.25,3.51037734]
[1773235501370,1.99030226,86.279,86.251,2.01303111]
[1773235502464,13.70127899,86.302,86.251,40.57911814]
[1773235502663,2.11406201,86.31,86.28,3.01037734]
[1773235502872,2.52,86.336,86.253,0.14216157]
[1773235502873,13.69684998,86.335,86.253,0.14216157]
[1773235503067,2.11406201,86.334,86.31,3.01037734]
[1773235503269,2.11406201,86.334,86.3,3.01037734]
[1773235503859,2.11406201,86.334,86.32,3.01037734]
[1773235504181,2.11406201,86.345,86.32,3.01037734]
[1773235504366,2.11406201,86.342,86.32,3.01037734]
[1773235504679,2.11406201,86.34,86.32,3.01037734]
[1773235504883,2.11406201,86.34,86.31,3.01037734]
[1773235505375,2.11406201,86.339,86.3,3.01037734]
[1773235505576,2.11406201,86.319,86.265,28.98029945]
[1773235505757,2.11406201,86.309,86.27,3.01037734]
[1773235506569,2.11406201,86.307,86.271,11.59138064]
[1773235506766,2.11406201,86.307,86.28,3.01037734]
[1773235507281,2.11406201,86.307,86.29,3.01037734]
[1773235508181,11.58641145,86.308,86.29,3.01037734]
[1773235508867,2.11406201,86.315,86.29,3.01037734]
[1773235509971,2.11406201,86.313,86.28,3.01037734]
[1773235511974,2.11406201,86.311,86.281,11.5900372]
[1773235513091,3.01037734,86.32,86.28,3.01037734]
[1773235513092,2.11406201,86.309,86.28,3.01037734]
[1773235513787,2.11406201,86.309,86.27,3.01037734]
[1773235513979,2.11406201,86.309,86.26,3.01037734]
[1773235515182,2.11406201,86.307,86.27,3.01037734]
[1773235515389,40.55244009,86.308,86.26,3.0508867]
[1773235515390,2.11406201,86.299,86.26,3.0508867]
[1773235515692,3.01037734,86.3,86.26,3.01037734]
[1773235515693,2.11406201,86.289,86.26,3.01037734]
[1773235516193,2.11406201,86.289,86.25,3.01037734]
[1773235517187,2.11406201,86.287,86.25,3.01037734]
[1773235517677,2.11406201,86.287,86.25,3.01070356]
[1773235517996,2.11406201,86.287,86.26,3.01070356]
[1773235518287,2.11406201,86.287,86.25,3.05954566]
[1773235518486,2.11406201,86.279,86.24,3.01070356]
[1773235519103,2.11406201,86.269,86.231,11.59675754]
[1773235519280,2.11406201,86.259,86.22,3.21070356]
[1773235520096,2.11406201,86.259,86.22,14.80887733]
[1773235520478,2.11406201,86.259,86.22,3.21070356]
[1773235520674,2.11406201,86.259,86.221,11.59810255]
[1773235520875,2.11406201,86.249,86.22,0.2]
[1773235521292,2.11406201,86.247,86.22,3.21070356]
[1773235521705,2.11406201,86.295,86.231,0.05960809]
[1773235521897,2.11406201,86.279,86.24,3.01070356]
[1773235522210,2.11406201,86.269,86.231,0.05960809]
[1773235522419,3.01070356,86.26,86.221,11.59810255]
[1773235522599,2.11406201,86.259,86.23,3.01070356]
[1773235523314,2.11406201,86.257,86.222,11.59796803]
[1773235523519,2.11406201,86.257,86.23,3.01070356]
[1773235524315,2.11406201,86.257,86.221,0.06219931]
[1773235525223,2.11406201,86.257,86.22,3.21070356]
[1773235525601,2.11406201,86.255,86.22,3.21070356]
[1773235525799,2.11406201,86.255,86.22,14.80892908]
[1773235526204,2.11406201,86.255,86.22,43.80452174]
[1773235526998,2.11406201,86.255,86.22,14.80892908]
[1773235528614,2.11406201,86.253,86.22,3.21070356]
[1773235528816,2.11406201,86.253,86.22,14.80882761]
[1773235529025,2.11406201,86.253,86.22,3.21070356]
[1773235529212,2.11406201,86.253,86.221,11.59810255]
[1773235529412,2.11406201,86.249,86.22,0.2]
[1773235530014,2.10563172,86.229,86.219,6.36451842]
[1773235530319,2.10563172,86.25,86.211,2.01326765]
[1773235530499,2.10563172,86.25,86.2,11.60090833]
[1773235530500,2.10563172,86.25,86.221,2.01326765]
[1773235530700,11.59433732,86.249,86.222,13.61123568]